Cogmind - Beta 10 @@@ ROGUE MODE // 2020.09.16 @ 02:48:28 Player: Kiwi La Croix Result: Destroyed by G-34 Mercenary with Small Laser Performance ------------- Evolutions (1) 500 Regions Visited (2) 400 Robots Destroyed (33) 165 Value Destroyed (747) 747 Prototype IDs (0) 0 Alien Tech Used (0) 0 Bonus (0) 0 TOTAL SCORE: 1812 Bonus ------- None Cogmind --------- Core Integrity 0/400 Matter 300/300 Energy 100/100 System Corruption 0% Temperature Cool (6) Movement Core (150) Ox2 Location -9/Materials Parts ------- > --- POWER (1) -------- (None) > --- PROPULSION (3) --- (None) > --- UTILITY (2) ------ Medium Storage Unit > --- WEAPON (3) ------- (None) > --- INVENTORY (8) ---- Heat Sink Cooling System Large Storage Unit Large Battery (300) Peak State ------------ > --- POWER ------------ Light Nuclear Core > --- PROPULSION ------- Aluminum Leg Aluminum Leg Aluminum Leg > --- UTILITY ---------- Medium Storage Unit Terrain Scanner > --- WEAPON ----------- Heavy EM Pulse Gun Light Cannon Datajack > --- INVENTORY -------- Ion Engine Ion Engine Aluminum Leg Heat Sink Cooling System Large Storage Unit Large Battery Light Armor Plating [Rating: 12] Favorites ----------- Power Ion Engine Engine Ion Engine Power Core Light Nuclear Core Propulsion Wheel Treads Light Treads Leg Aluminum Leg Wheel Wheel Utility Medium Storage Unit Device Terrain Scanner Storage Medium Storage Unit Protection Light Armor Plating Weapon Beam Rifle Energy Gun Beam Rifle Ballistic Gun Assault Rifle Ballistic Cannon Light Cannon Special Weapon Mining Laser Special Melee Weapon Datajack Build | -11 -10 -9 ------- Run | Scr Mat Mat Slots Evolved 2 | . . 2 Power . | . . . Propulsion 1 | . . 1 Utility . | . . . Weapon 1 | . . 1 Parts Attached 38 | 6 10 22 Power 6 | 1 2 3 Engine 5 | 1 2 2 Core 1 | . . 1 Reactor . | . . . Propulsion 13 | 2 1 10 Treads 2 | . . 2 Leg 7 | . . 7 Wheel 4 | 2 1 1 Hover . | . . . Flight . | . . . Utility 5 | 1 3 1 Device 1 | . 1 . Storage 3 | 1 2 . Processor . | . . . Hackware . | . . . Protection 1 | . . 1 Artifact . | . . . Weapon 14 | 2 4 8 Energy Gun 7 | 1 2 4 Energy Cannon . | . . . Ballistic Gun 3 | 1 2 . Ballistic Cannon 1 | . . 1 Launcher . | . . . Special Weapon 2 | . . 2 Impact Weapon . | . . . Slashing Weapon . | . . . Piercing Weapon . | . . . Special Melee Weapon 1 | . . 1 Unidentified Prototypes . | . . . Parts Lost 25 | . 2 23 Power 4 | . 1 3 Propulsion 9 | . 1 8 Utility 2 | . . 2 Weapon 10 | . . 10 Highest Loss Streak 12 | . 1 12 Average Slot Usage (%) 89 | . 95 80 Engine 10 | . 12 7 Core 1 | . . 2 Treads 1 | . . 4 Leg 7 | . . 17 Wheel 17 | . 26 5 Device 11 | . 13 9 Storage 12 | . 13 11 Energy Gun 11 | . 13 8 Ballistic Gun 8 | . 14 1 Ballistic Cannon 1 | . . 2 Special Melee Weapon 3 | . . 7 Naked Turns . | . . . Heaviest Build 24 | 12 24 21 Greatest Support 42 | 20 26 42 Greatest Overweight (x) 1 | . 1 1 Average Overweight (x) . | . . . Largest Inventory Capacity 14 | 6 14 8 Average Capacity 7 | 5 8 8 Most Carried 8 | 4 8 8 Average Carried 6 | 2 7 6 Final Capacity 8 | 6 8 8 Final Carried 8 | 2 8 4 Class Distribution -------------------- 71% | Mutant 24% | Scavenger-Mutant 4% | Skirmisher Dominant Class ---------------- Mutant | -10/Materials Scavenger-Mutant | -9/Materials Resources | -11 -10 -9 ----------- Run | Scr Mat Mat Matter Collected 646 | 208 209 229 Remotely . | . . . Salvage Created 957 | . 436 521 Parts 79 | . 40 39 Haulers Intercepted . | . . . Recyclers Shooed . | . . . Parts Field Recycled . | . . . Retrieved Matter . | . . . Parts Self-Destructed . | . . . Prevented . | . . . Kills | -11 -10 -9 ------- Run | Scr Mat Mat Combat Hostiles Destroyed 29 | . 15 14 Melee 1 | . . 1 Guns 24 | . 15 9 Cannons 4 | . . 4 Classes Destroyed 6 | . 3 3 Worker 1 | . . 1 Builder 1 | . . 1 Watcher 2 | . 2 . Swarmer 14 | . 9 5 Grunt 12 | . 6 6 Sentry 3 | . . 3 Best Kill Streak 4 | . 4 3 Combat Bots Only 4 | . 4 3 Max Kills in Single Turn 2 | . 2 1 Gunslinging 1 | . 1 . Exploded . | . . . Melee 1 | . . 1 Uniques/NPCs Destroyed . | . . . Combat | -11 -10 -9 -------- Run | Scr Mat Mat Damage Taken 2203 | . 369 1834 Core 462 | . 60 402 Absorbed by Shields . | . . . Core Remaining (%) 88 | 100 76 . Volleys Fired 83 | . 28 55 Largest 3 | . 2 3 Hottest 160 | . 76 160 Shots Fired 139 | . 53 86 Gun 114 | . 53 61 Cannon 20 | . . 20 Launcher . | . . . Special 5 | . . 5 Kinetic 51 | . 25 26 Thermal 45 | . 28 17 Explosive . | . . . Electromagnetic 43 | . . 43 Robot Hit Streak 10 | . 6 10 Robot Miss Streak 4 | . 2 4 Penetration Max . | . . . Secondary Targets 4 | . 4 . Max Gunslinging Chain 1 | . 1 . Shots Hit Robots 89 | . 33 56 Core Hits 46 | . 19 27 Critical Hits 2 | . . 2 Critical Kills . | . . . Critical Parts Destroyed 2 | . . 2 Melee Attacks 1 | . . 1 Impact . | . . . Slashing . | . . . Piercing . | . . . Sneak Attacks . | . . . Combat Hostiles . | . . . Follow-up Attacks . | . . . Damage Inflicted 1318 | . 479 839 Guns 1020 | . 479 541 Cannons 194 | . . 194 Explosions 30 | . . 30 Melee . | . . . Ramming 14 | . . 14 Kinetic 330 | . 102 228 Thermal 582 | . 377 205 Explosive . | . . . Electromagnetic 392 | . . 392 Impact . | . . . Slashing . | . . . Piercing . | . . . Highest Corruption 1 | . 1 . Average Corruption 1 | . 1 . Corruption Purged . | . . . Overload Shots . | . . . Overflow Damage 10 | . . 10 Projectiles . | . . . Explosions 10 | . . 10 Melee . | . . . Knockbacks 1 | . . 1 Impact . | . . . Kinetic 1 | . . 1 Secondary . | . . . Self-Inflicted Damage 29 | . . 29 Shots 1 | . . 1 Rammed 5 | . . 5 Targets Rammed 7 | . . 7 Kicked 2 | . . 2 Crushed . | . . . Highest Temperature 314 | . 194 314 Average Temperature 64 | . 44 75 Received Heat Transfer 729 | . 66 663 Effects 1 | . . 1 Energy Bleed 1 | . . 1 Siege Activations . | . . . Robots Corrupted . | . . . Combat Hostiles . | . . . Parts Fried 2 | . . 2 Impact Corruptions . | . . . Robots Melted . | . . . Combat Hostiles . | . . . Parts Melted 3 | . 2 1 Heat Transferred 1445 | . 962 483 Parts Sabotaged . | . . . Parts Stolen . | . . . Parts Stripped . | . . . Power Chain Reactions 1 | . . 1 Missiles Intercepted . | . . . Alert | -11 -10 -9 ------- Run | Scr Mat Mat Peak Influence 249 | . 249 208 Initial 68 | . . 68 Average 111 | . 119 110 Maximum Alert Level 1 | . 1 1 Low Security (%) 90 | 100 88 91 Level 1 9 | . 11 8 Level 2 . | . . . Level 3 . | . . . Level 4 . | . . . Level 5 . | . . . High Security . | . . . Max Security . | . . . Squads Dispatched 5 | . 3 2 Investigation 1 | . . 1 Extermination . | . . . Reinforcement 4 | . 3 1 Assault . | . . . Garrison . | . . . Intercept . | . . . Construction Impeded . | . . . Haulers Reinforced . | . . . Stealth | -11 -10 -9 --------- Run | Scr Mat Mat Distress Signals 2 | . 2 . Communications Jammed . | . . . Distress Signals . | . . . Times Spotted 54 | . 27 27 Peak Tracking Total 8 | . 4 8 Tactical Retreats 7 | . 3 4 Traps | -11 -10 -9 ------- Run | Scr Mat Mat Traps Triggered 3 | . 2 1 Indirectly . | . . . Trap Hack Attempts . | . . . Triggered . | . . . Disarmed . | . . . Reprogrammed . | . . . Reused . | . . . Traps Extracted . | . . . Installed . | . . . Triggered . | . . . Machines | -11 -10 -9 ---------- Run | Scr Mat Mat Machines Disabled . | . . . Max in Single Turn . | . . . Machines Sabotaged . | . . . Garrisons Compromised . | . . . Overloaded Fab Kills . | . . . Fab Network Shutdowns . | . . . Hacking | -11 -10 -9 --------- Run | Scr Mat Mat Machines Accessed 4 | . 4 . Terminals 2 | . 2 . Fabricators . | . . . Repair Stations . | . . . Recycling Units 2 | . 2 . Scanalyzers . | . . . Garrison Access . | . . . Total Hacks 4 | . 4 . Successful 4 | . 4 . Failed . | . . . Catastrophic . | . . . Database Lockouts . | . . . Manual 2 | . 2 . Terminals 2 | . 2 . Fabricators . | . . . Repair Stations . | . . . Recycling Units 2 | . 2 . Scanalyzers . | . . . Garrison Access . | . . . Terminal Hacks 2 | . 2 . Record 1 | . 1 . Alert Level 1 | . 1 . Fabricator Hacks . | . . . Repair Station Hacks . | . . . Recycling Unit Hacks 2 | . 2 . Report Inventory 2 | . 2 . Scanalyzer . | . . . Garrison Access Hacks . | . . . Unauthorized Hacks . | . . . Terminals . | . . . Fabricators . | . . . Repair Stations . | . . . Recycling Units . | . . . Scanalyzers . | . . . Garrison Access . | . . . Data Cores Recovered . | . . . Used . | . . . Hacking Detections 1 | . 1 . Full Trace Events . | . . . Feedback Events . | . . . Feedback Blocked . | . . . Robot Schematics Acquired . | . . . Robots Built . | . . . Matter . | . . . Time . | . . . Total Robot Build Rating . | . . . Part Schematics Acquired . | . . . Parts Built . | . . . Matter . | . . . Time . | . . . Total Part Build Rating . | . . . Parts Repaired . | . . . Time . | . . . Parts Recycled . | . . . Recycled Matter . | . . . Retrieved Matter . | . . . Retrieved Components . | . . . Parts Scanalyzed . | . . . Part Schematics Acquired . | . . . Parts Damaged . | . . . Bothacking | -11 -10 -9 ------------ Run | Scr Mat Mat Used RIF Installer . | . . . Robots Hacked . | . . . Non-combat . | . . . Combat . | . . . Robot Hacks Applied . | . . . Relay Couplers Released . | . . . Robots Rewired . | . . . Allies Hacked . | . . . Hacks Repelled . | . . . Allies | -11 -10 -9 -------- Run | Scr Mat Mat Total Allies . | . . . Largest Group . | . . . Highest-Rated Group . | . . . Highest-Rated Ally . | . . . Total Orders . | . . . Ally Attacks . | . . . Total Damage . | . . . Kills . | . . . Allies Corrupted . | . . . Allies Melted . | . . . Intel | -11 -10 -9 ------- Run | Scr Mat Mat Robot Analysis Total . | . . . Derelict Logs Recovered . | . . . Drone Launches . | . . . Drone Recoveries . | . . . Exploration | -11 -10 -9 ------------- Run | Scr Mat Mat Turns Passed 1792 | 60 1026 706 Spaces Moved 1394 | 60 960 374 Core 15 | 15 . . Treads 76 | . . 76 Legs 254 | . . 254 Wheels 1049 | 45 960 44 Hover . | . . . Flight . | . . . Fastest Speed 50 | 50 80 93 Average Speed 95 | 72 85 125 Slowest Speed 160 | 80 90 160 Overloaded Moves . | . . . Propulsion Burnouts . | . . . Robots Hopped . | . . . Cave-ins Triggered . | . . . Exploration Rate (%) 43 | 5 97 28 Regions Visited 2 Branch Regions . Pre-discovered Areas . | . . . Known Exits Taken . | . . . Unknown Exits Taken 2 | 1 1 . Scrap Searched . | . . . Spaces Dug . | . . . Terrain Destroyed 5 | . . 5 Melee . | . . . Projectile . | . . . AOE 5 | . . 5 Terrain Rammed . | . . . Walls Destroyed . | . . . Machines Disabled . | . . . Actions | -11 -10 -9 --------- Run | Scr Mat Mat Total 1709 | 77 1117 515 Wait 132 | . 97 35 Move 1392 | 59 959 374 Hop . | . . . Pick Up 44 | 10 17 17 Fast Attach . | . . . Attach 33 | 6 9 18 Detach 1 | . 1 . Swap 5 | . 1 4 Drop 11 | 2 5 4 Fire 83 | . 28 55 Melee 1 | . . 1 Ram 1 | . . 1 Kick 6 | . . 6 Crush . | . . . Escape Stasis . | . . . Rewire . | . . . Trap . | . . . Miscellaneous . | . . . Route ------- -11/Scrapyard -10/Materials (discovered 5 exits: [*Mat x3] / [*Min x2]) -9/Materials History --------- Turn | Location | Event 12 | -11/Scrapyard | Discovered new exit (range 16) 61 | -11/Scrapyard | Entered Materials 311 | -10/Materials | Build established: Mutant 341 | -10/Materials | Discovered new exit (range 11) 401 | -10/Materials | Discovered new exit (range 10) 519 | -10/Materials | Discovered new exit (range 5) 539 | -10/Materials | Discovered new exit (range 16) 619 | -10/Materials | Discovered new exit (range 16) 1087 | -10/Materials | Entered another Materials area 1087 | -9/Materials | Evolved 2 slots: Propulsion x1, Weapon x1 1238 | -9/Materials | Lost 7 parts (1p2n4w) 1709 | -9/Materials | Core integrity fell below 50% 1772 | -9/Materials | Core integrity fell below 20% 1793 | -9/Materials | Destroyed by G-34 Mercenary with Small Laser Last Messages --------------- 01717_ G-47 Trooper knocked back. 01719_ Lgt. Cannon destroyed. 01722_ Kicked G-47 Trooper out of the way. 01725_ O-16 Technician uses terminal to summon reinforcements. 01725_ ALERT: Hostiles spotted, dispatching reinforcements to Terminal M001. 01725_ O-16 Technician locks terminal. 01731_ Ion Engine destroyed. 01761_ Acquired 11 matter. 01761_ Aluminum Leg destroyed. 01770_ K-01 Serf collects debris. 01783_ Slammed into S-10 Pest. 01787_ Kicked S-10 Pest out of the way. 01788_ Slammed into S-10 Pest. 01788_ S-10 Pest destroyed. [Achievement: Fist Fight] 01789_ Aluminum Leg destroyed. 01791_ Lgt. Armor Plating destroyed. 01791_ Slammed into S-10 Pest. 01791_ Aluminum Leg destroyed. 01792_ Slammed into S-10 Pest. Map ----- +----------------------------------------------------+ | ???????????????????????????? | | ???????????????????????????? | | ???????????????????????????? | | ???????????????????????????? | | ???????????????????????????? | | ???????????????????????????? | | ???????????????????????????? | | ???????????????????????????? | | ???????????????????????????? | | ???????????????????????????? | | ????????????#??????????????? | | ?????????########??????????? | | ?????????? T ??????????? | | ?????????? ! #??? ??????? | | ??????????? #????+?????? | | ?#????????? *] ???? #?????? | | ??#????#????] ??? #?????? | | ??????#????? ??? ###???? | | ??#??????####/### #????? | | ???????#?# ##???? | | ?????????# #????? | | ########## "% #????? | | # #### #????? | | # ! ############### | | """ """ # %# = # | | """ """ + %+ gg %@s# | | """ """ # # ggs%%# | | # # """ "" """ # | | # # """ """ """ # | | # # """ """ """ # | | ########## ############### | | ????#????# #########?????? | | ########## #?# #?????? | | #?# #??#??? | | #?# #?????? | | #?# #?#???? | | ######+## #### #?????? | | ???? # #?#?# #######? | | ?? "" # #???# # # | | / T" # #??## # # | | "" # #???# + """ # | | # #???# # """ # | | # #?#?# # """ # | | # #???# # # | | # #?#?# ######## | | +###?#### #???# # # | | ????????# #?### # # | | ?????"??# #?#?# # " # | | ???????# ##?## # """# | | ?? ??" ## ##??# # """# | +----------------------------------------------------+ Best States ------------- Heat Dissipation 28 Energy Generation 14 Energy Capacity 250 Matter Stores 300 Matter Capacity 300 Sight Range 16 Terrain Scan Range 14 Terrain Scan Density 10 Armor Coverage 150 Evasion (%) 44 Recoil Reduction 2 Item Schematics ----------------- None Robot Schematics ------------------ None Fabricated ------------ Nothing Alien Tech Used ----------------- None Achievements -------------- Crack Shot Fist Fight Challenges ------------ None Game ------ Seed FactoryGuidedLance Manual? 0 Play Time 00:53:17 Cumulative 3.7 hours Start 2020.09.16 @ 00:45:58 End 2020.09.16 @ 02:48:28 Sessions 1 Manual Loads 0 Difficulty Rogue Special Mode None Game No. 4 Rogue 4 Adventurer 0 Explorer 0 Win Type - Total 0 Types 0/0/0/0/0/0/0/0/0 Lore% 4 Gallery% 3 Achievement% 5 Wizard Run 0 Options --------- ASCII 0 Keyboard 0 Movement Numpad Keybinds 0 Fullscreen 2 Font 18/Terminus Map View 112x50 Tactical HUD 1 Map Filters NONE Filters NONE Steam 1 RUN: 2b81ddc4-ed47-4e91-9c02-dd84741f60f6